[Event "Titled Tuesday Blitz November 14 Late 2023"]
[White "Sivakumar, Shaaketh"]
[Black "MFatigue"]
[WhiteFideId "30940176"]
[WhiteElo "2648"]
[BlackElo "2487"]
[Result "1/2-1/2"]
[Round "4"]
[TimeControl "180+1"]
[Date "2023.11.14"]
[WhiteClock "0:00:17"]
[BlackClock "0:00:07"]
[Board "58"]

1. Nf3 {[%clk 0:03:00]}  d5 {[%clk 0:02:56]} 2. g3 {[%clk 0:03:01]}  g6 {[%clk 0:02:55]} 3. Bg2 {[%clk 0:03:01]}  Bg7 {[%clk 0:02:55]} 4. d4 {[%clk 0:03:01]}  Nf6 {[%clk 0:02:55]} 5. c4 {[%clk 0:03:01]}  c6 {[%clk 0:02:55]} 6. O-O {[%clk 0:03:01]}  O-O {[%clk 0:02:55]} 7. b3 {[%clk 0:03:00]}  Be6 {[%clk 0:02:49]} 8. Qc2 {[%clk 0:02:57]}  Nbd7 {[%clk 0:02:46]} 9. Bb2 {[%clk 0:02:56]}  Ne4 {[%clk 0:02:42]} 10. Nbd2 {[%clk 0:02:52]}  Bf5 {[%clk 0:02:35]} 11. Nxe4 {[%clk 0:02:39]}  Bxe4 {[%clk 0:02:36]} 12. Qd2 {[%clk 0:02:38]}  e5 {[%clk 0:02:22]} 13. cxd5 {[%clk 0:02:34]}  Bxd5 {[%clk 0:02:15]} 14. dxe5 {[%clk 0:02:30]}  Bxf3 {[%clk 0:02:16]} 15. exf3 {[%clk 0:02:08]}  Nxe5 {[%clk 0:02:14]} 16. Qc2 {[%clk 0:02:03]}  Qd3 {[%clk 0:02:07]} 17. Qxd3 {[%clk 0:01:50]}  Nxd3 {[%clk 0:02:08]} 18. Bxg7 {[%clk 0:01:47]}  Kxg7 {[%clk 0:02:08]} 19. Rfd1 {[%clk 0:01:46]}  Rad8 {[%clk 0:02:05]} 20. Bf1 {[%clk 0:01:47]}  Nb4 {[%clk 0:01:48]} 21. a3 {[%clk 0:01:26]}  Nd5 {[%clk 0:01:39]} 22. Rd3 {[%clk 0:01:22]}  Rd6 {[%clk 0:01:28]} 23. Rad1 {[%clk 0:01:21]}  Rfd8 {[%clk 0:01:28]} 24. b4 {[%clk 0:01:19]}  Kf6 {[%clk 0:01:26]} 25. f4 {[%clk 0:01:18]}  Ke7 {[%clk 0:01:26]} 26. Re1+ {[%clk 0:01:15]}  Kf6 {[%clk 0:01:20]} 27. Red1 {[%clk 0:01:13]}  Ke7 {[%clk 0:01:20]} 28. Re1+ {[%clk 0:01:00]}  Kf6 {[%clk 0:01:12]} 29. Rb3 {[%clk 0:00:59]}  Ne7 {[%clk 0:01:00]} 30. b5 {[%clk 0:00:59]}  c5 {[%clk 0:00:59]} 31. a4 {[%clk 0:00:58]}  b6 {[%clk 0:00:59]} 32. a5 {[%clk 0:00:57]}  Nf5 {[%clk 0:00:59]} 33. axb6 {[%clk 0:00:56]}  axb6 {[%clk 0:00:58]} 34. Ra3 {[%clk 0:00:55]}  Nd4 {[%clk 0:00:58]} 35. Rb1 {[%clk 0:00:48]}  Nc2 {[%clk 0:00:50]} 36. Ra6 {[%clk 0:00:47]}  Nb4 {[%clk 0:00:51]} 37. Ra7 {[%clk 0:00:46]}  Nc2 {[%clk 0:00:31]} 38. Kg2 {[%clk 0:00:40]}  Nd4 {[%clk 0:00:31]} 39. Bc4 {[%clk 0:00:39]}  R8d7 {[%clk 0:00:28]} 40. Rba1 {[%clk 0:00:40]}  Ne6 {[%clk 0:00:24]} 41. Ra8 {[%clk 0:00:37]}  Rb7 {[%clk 0:00:18]} 42. Rh8 {[%clk 0:00:37]}  h5 {[%clk 0:00:18]} 43. Raa8 {[%clk 0:00:36]}  Rd4 {[%clk 0:00:18]} 44. Be2 {[%clk 0:00:35]}  c4 {[%clk 0:00:16]} 45. Rhb8 {[%clk 0:00:34]}  Rxb8 {[%clk 0:00:13]} 46. Rxb8 {[%clk 0:00:35]}  c3 {[%clk 0:00:13]} 47. Rxb6 {[%clk 0:00:34]}  Rd2 {[%clk 0:00:06]} 48. Bf3 {[%clk 0:00:34]}  Rb2 {[%clk 0:00:05]} 49. Rc6 {[%clk 0:00:27]}  c2 {[%clk 0:00:05]} 50. Be4 {[%clk 0:00:24]}  Kg7 {[%clk 0:00:05]} 51. Bxc2 {[%clk 0:00:23]}  Nd4 {[%clk 0:00:05]} 52. Rc4 {[%clk 0:00:19]}  Nxc2 {[%clk 0:00:05]} 53. b6 {[%clk 0:00:20]}  Na3 {[%clk 0:00:04]} 54. Ra4 {[%clk 0:00:20]}  Rxb6 {[%clk 0:00:02]} 55. Rxa3 {[%clk 0:00:20]}  Rf6 {[%clk 0:00:03]} 56. Re3 {[%clk 0:00:20]}  Rd6 {[%clk 0:00:04]} 57. h3 {[%clk 0:00:21]}  Rd7 {[%clk 0:00:04]} 58. Kf3 {[%clk 0:00:22]}  Rd6 {[%clk 0:00:05]} 59. Rc3 {[%clk 0:00:21]}  Rf6 {[%clk 0:00:05]} 60. Ke4 {[%clk 0:00:22]}  Rd6 {[%clk 0:00:05]} 61. Kf3 {[%clk 0:00:21]}  Re6 {[%clk 0:00:06]} 62. Rd3 {[%clk 0:00:21]}  Re1 {[%clk 0:00:06]} 63. g4 {[%clk 0:00:21]}  Rh1 {[%clk 0:00:06]} 64. Kg2 {[%clk 0:00:21]}  Ra1 {[%clk 0:00:05]} 65. g5 {[%clk 0:00:21]}  Ra5 {[%clk 0:00:05]} 66. Kg3 {[%clk 0:00:22]}  Rf5 {[%clk 0:00:05]} 67. Re3 {[%clk 0:00:21]}  Rc5 {[%clk 0:00:06]} 68. Re5 {[%clk 0:00:21]}  Rc3+ {[%clk 0:00:06]} 69. f3 {[%clk 0:00:21]}  Rc1 {[%clk 0:00:06]} 70. f5 {[%clk 0:00:22]}  Rg1+ {[%clk 0:00:07]} 71. Kf2 {[%clk 0:00:22]}  Rxg5 {[%clk 0:00:06]} 72. f4 {[%clk 0:00:19]}  Rxf5 {[%clk 0:00:05]} 73. Rxf5 {[%clk 0:00:17]}  gxf5 {[%clk 0:00:06]} 74. h4 {[%clk 0:00:16]}  Kf6 {[%clk 0:00:06]} 75. Ke3 {[%clk 0:00:16]}  Ke6 {[%clk 0:00:06]} 76. Kd4 {[%clk 0:00:16]}  Kd6 {[%clk 0:00:07]} 77. Kc4 {[%clk 0:00:17]}  Kc6 {[%clk 0:00:06]} 78. Kd4 {[%clk 0:00:17]}  Kd6 {[%clk 0:00:05]} 79. Kc4 {[%clk 0:00:18]}  f6 {[%clk 0:00:05]} 80. Kd4 {[%clk 0:00:18]}  Kc6 {[%clk 0:00:05]} 81. Kc4 {[%clk 0:00:19]}  Kd6 {[%clk 0:00:06]} 82. Kd4 {[%clk 0:00:19]}  Kc6 {[%clk 0:00:06]} 83. Kc4 {[%clk 0:00:17]}  Kd6 {[%clk 0:00:07]} 1/2-1/2


[Site "https://www.chess.com"]

[Event "Titled Tuesday Blitz November 14 Late 2023"]
[White "reevecanada"]
[Black "Molina Carretero, Daniel"]
[BlackFideId "32071914"]
[WhiteElo "2647"]
[BlackElo "2452"]
[Result "1-0"]
[Round "4"]
[TimeControl "180+1"]
[Date "2023.11.14"]
[WhiteClock "0:02:51"]
[BlackClock "0:01:18"]
[Board "59"]

1. e4 {[%clk 0:03:00]}  c6 {[%clk 0:02:59]} 2. c4 {[%clk 0:03:00]}  d5 {[%clk 0:02:59]} 3. cxd5 {[%clk 0:03:01]}  cxd5 {[%clk 0:03:00]} 4. exd5 {[%clk 0:03:02]}  Nf6 {[%clk 0:03:01]} 5. Nc3 {[%clk 0:03:03]}  g6 {[%clk 0:03:01]} 6. Nf3 {[%clk 0:03:03]}  Bg7 {[%clk 0:03:01]} 7. Bc4 {[%clk 0:03:04]}  O-O {[%clk 0:03:02]} 8. d4 {[%clk 0:03:03]}  Nbd7 {[%clk 0:03:02]} 9. Bb3 {[%clk 0:03:03]}  Nb6 {[%clk 0:03:01]} 10. d6 {[%clk 0:03:04]}  Qxd6 {[%clk 0:03:00]} 11. O-O {[%clk 0:03:04]}  Bg4 {[%clk 0:02:59]} 12. h3 {[%clk 0:03:05]}  Bxf3 {[%clk 0:02:59]} 13. Qxf3 {[%clk 0:03:06]}  Qxd4 {[%clk 0:02:56]} 14. Qxb7 {[%clk 0:03:04]}  Qd7 {[%clk 0:02:49]} 15. Qxd7 {[%clk 0:03:03]}  Nbxd7 {[%clk 0:02:48]} 16. Be3 {[%clk 0:03:03]}  Rfc8 {[%clk 0:02:45]} 17. Rad1 {[%clk 0:03:03]}  Nc5 {[%clk 0:02:44]} 18. Bc2 {[%clk 0:03:01]}  Rab8 {[%clk 0:02:37]} 19. Bxc5 {[%clk 0:03:00]}  Rxc5 {[%clk 0:02:37]} 20. Bb3 {[%clk 0:03:01]}  Rc7 {[%clk 0:02:28]} 21. Rfe1 {[%clk 0:03:01]}  Kf8 {[%clk 0:01:59]} 22. g4 {[%clk 0:03:01]}  h6 {[%clk 0:01:59]} 23. f4 {[%clk 0:03:00]}  Ke8 {[%clk 0:01:53]} 24. Rd2 {[%clk 0:02:59]}  Rbc8 {[%clk 0:01:46]} 25. Red1 {[%clk 0:02:59]}  e6 {[%clk 0:01:39]} 26. Nb5 {[%clk 0:02:57]}  Ne4 {[%clk 0:01:33]} 27. Nxc7+ {[%clk 0:02:55]}  Rxc7 {[%clk 0:01:34]} 28. Re2 {[%clk 0:02:52]}  Nc5 {[%clk 0:01:26]} 29. Bc4 {[%clk 0:02:52]}  Na4 {[%clk 0:01:18]} 30. Bb5+ {[%clk 0:02:51]} 1-0


[Site "https://www.chess.com"]

[Event "Titled Tuesday Blitz November 14 Late 2023"]
[White "szachmistrz2500"]
[Black "Thomforde-Toates, Noah"]
[BlackFideId "30951992"]
[WhiteElo "2440"]
[BlackElo "2635"]
[Result "1-0"]
[Round "4"]
[TimeControl "180+1"]
[Date "2023.11.14"]
[WhiteClock "0:00:15"]
[BlackClock "0:00:21"]
[Board "61"]

1. Nf3 {[%clk 0:03:00]}  Nf6 {[%clk 0:02:57]} 2. g3 {[%clk 0:03:01]}  g6 {[%clk 0:02:58]} 3. Bg2 {[%clk 0:03:01]}  Bg7 {[%clk 0:02:59]} 4. d3 {[%clk 0:03:00]}  d6 {[%clk 0:02:59]} 5. e4 {[%clk 0:03:00]}  c5 {[%clk 0:02:57]} 6. O-O {[%clk 0:02:59]}  O-O {[%clk 0:02:55]} 7. c3 {[%clk 0:02:59]}  Nc6 {[%clk 0:02:55]} 8. Re1 {[%clk 0:02:58]}  Bg4 {[%clk 0:02:53]} 9. Nbd2 {[%clk 0:02:56]}  Nd7 {[%clk 0:02:50]} 10. h3 {[%clk 0:02:55]}  Bxf3 {[%clk 0:02:42]} 11. Nxf3 {[%clk 0:02:56]}  Nde5 {[%clk 0:02:42]} 12. Bf4 {[%clk 0:02:46]}  Qd7 {[%clk 0:02:41]} 13. Qd2 {[%clk 0:02:41]}  Nxf3+ {[%clk 0:02:36]} 14. Bxf3 {[%clk 0:02:41]}  Qxh3 {[%clk 0:02:35]} 15. Bg2 {[%clk 0:02:41]}  Qd7 {[%clk 0:02:34]} 16. Be3 {[%clk 0:02:33]}  e5 {[%clk 0:02:33]} 17. f4 {[%clk 0:02:32]}  f5 {[%clk 0:02:30]} 18. exf5 {[%clk 0:02:31]}  gxf5 {[%clk 0:02:26]} 19. fxe5 {[%clk 0:02:27]}  Nxe5 {[%clk 0:02:19]} 20. Bd5+ {[%clk 0:02:25]}  Kh8 {[%clk 0:02:14]} 21. Kg2 {[%clk 0:02:23]}  Ng4 {[%clk 0:02:05]} 22. Rh1 {[%clk 0:02:11]}  Rae8 {[%clk 0:01:53]} 23. Bf4 {[%clk 0:02:06]}  Be5 {[%clk 0:01:43]} 24. Rae1 {[%clk 0:02:02]}  Bxf4 {[%clk 0:01:40]} 25. Qxf4 {[%clk 0:02:02]}  Re5 {[%clk 0:01:39]} 26. Bf3 {[%clk 0:01:34]}  Rfe8 {[%clk 0:01:28]} 27. Rxe5 {[%clk 0:01:29]}  dxe5 {[%clk 0:01:27]} 28. Qd2 {[%clk 0:01:23]}  Rg8 {[%clk 0:01:15]} 29. Qe2 {[%clk 0:01:13]}  Qd6 {[%clk 0:01:08]} 30. Rh5 {[%clk 0:00:59]}  c4 {[%clk 0:00:56]} 31. dxc4 {[%clk 0:00:45]}  e4 {[%clk 0:00:50]} 32. Bxg4 {[%clk 0:00:33]}  Rxg4 {[%clk 0:00:50]} 33. Qe3 {[%clk 0:00:29]}  Qe5 {[%clk 0:00:51]} 34. Kf2 {[%clk 0:00:21]}  f4 {[%clk 0:00:46]} 35. Rxe5 {[%clk 0:00:19]}  fxe3+ {[%clk 0:00:46]} 36. Kxe3 {[%clk 0:00:19]}  Rxg3+ {[%clk 0:00:44]} 37. Kxe4 {[%clk 0:00:20]}  b6 {[%clk 0:00:37]} 38. Re8+ {[%clk 0:00:19]}  Kg7 {[%clk 0:00:37]} 39. Re7+ {[%clk 0:00:19]}  Kg6 {[%clk 0:00:37]} 40. Rxa7 {[%clk 0:00:18]}  Rg2 {[%clk 0:00:37]} 41. b4 {[%clk 0:00:17]}  Rg3 {[%clk 0:00:36]} 42. Kd4 {[%clk 0:00:15]}  Rg4+ {[%clk 0:00:35]} 43. Kd5 {[%clk 0:00:15]}  Rg3 {[%clk 0:00:35]} 44. c5 {[%clk 0:00:14]}  bxc5 {[%clk 0:00:34]} 45. bxc5 {[%clk 0:00:14]}  Rxc3 {[%clk 0:00:34]} 46. c6 {[%clk 0:00:15]}  h5 {[%clk 0:00:34]} 47. c7 {[%clk 0:00:15]}  h4 {[%clk 0:00:35]} 48. Ra6+ {[%clk 0:00:15]}  Kf7 {[%clk 0:00:25]} 49. Rc6 {[%clk 0:00:15]}  Rd3+ {[%clk 0:00:25]} 50. Ke4 {[%clk 0:00:14]}  Rd7 {[%clk 0:00:19]} 51. c8=Q {[%clk 0:00:13]}  Re7+ {[%clk 0:00:20]} 52. Kf5 {[%clk 0:00:14]}  h3 {[%clk 0:00:21]} 53. Rf6+ {[%clk 0:00:14]}  Kg7 {[%clk 0:00:21]} 54. Qf8+ {[%clk 0:00:14]}  Kh7 {[%clk 0:00:21]} 55. Rh6# {[%clk 0:00:15]} 1-0


[Site "https://www.chess.com"]

[Event "Titled Tuesday Blitz November 14 Late 2023"]
[White "Estrada Nieto, Julian"]
[Black "Papasimakopoulos, Alexandros"]
[WhiteFideId "5101018"]
[BlackFideId "4244125"]
[WhiteElo "2438"]
[BlackElo "2633"]
[Result "1/2-1/2"]
[Round "4"]
[TimeControl "180+1"]
[Date "2023.11.14"]
[WhiteClock "0:00:07"]
[BlackClock "0:00:12"]
[Board "62"]

1. d4 {[%clk 0:03:00]}  d5 {[%clk 0:02:59]} 2. Nf3 {[%clk 0:02:59]}  c6 {[%clk 0:02:57]} 3. c4 {[%clk 0:02:59]}  e6 {[%clk 0:02:57]} 4. cxd5 {[%clk 0:02:53]}  exd5 {[%clk 0:02:57]} 5. Nc3 {[%clk 0:02:53]}  Bd6 {[%clk 0:02:57]} 6. Qc2 {[%clk 0:02:50]}  Ne7 {[%clk 0:02:54]} 7. e4 {[%clk 0:02:45]}  dxe4 {[%clk 0:02:55]} 8. Nxe4 {[%clk 0:02:45]}  Bb4+ {[%clk 0:02:56]} 9. Nc3 {[%clk 0:02:38]}  Bf5 {[%clk 0:02:52]} 10. Qb3 {[%clk 0:02:36]}  Qb6 {[%clk 0:02:51]} 11. Bc4 {[%clk 0:02:34]}  Bg6 {[%clk 0:02:49]} 12. O-O {[%clk 0:02:31]}  O-O {[%clk 0:02:49]} 13. Ne5 {[%clk 0:02:28]}  Nf5 {[%clk 0:02:36]} 14. Nxg6 {[%clk 0:02:13]}  hxg6 {[%clk 0:02:35]} 15. d5 {[%clk 0:02:05]}  Bxc3 {[%clk 0:02:30]} 16. bxc3 {[%clk 0:02:03]}  Qxb3 {[%clk 0:02:10]} 17. Bxb3 {[%clk 0:01:52]}  Rd8 {[%clk 0:02:07]} 18. Bg5 {[%clk 0:01:46]}  Rd7 {[%clk 0:02:01]} 19. Rad1 {[%clk 0:01:31]}  cxd5 {[%clk 0:01:46]} 20. Rxd5 {[%clk 0:01:27]}  Rxd5 {[%clk 0:01:42]} 21. Bxd5 {[%clk 0:01:27]}  Nc6 {[%clk 0:01:43]} 22. Rb1 {[%clk 0:01:27]}  Nd6 {[%clk 0:01:36]} 23. Bf4 {[%clk 0:01:20]}  Rd8 {[%clk 0:01:35]} 24. h3 {[%clk 0:01:10]}  Na5 {[%clk 0:01:16]} 25. Bxd6 {[%clk 0:00:59]}  Rxd6 {[%clk 0:01:17]} 26. Bxb7 {[%clk 0:00:59]}  Rd2 {[%clk 0:01:11]} 27. a4 {[%clk 0:00:56]}  Ra2 {[%clk 0:01:07]} 28. Bd5 {[%clk 0:00:52]}  Rxa4 {[%clk 0:01:05]} 29. Rb8+ {[%clk 0:00:51]}  Kh7 {[%clk 0:01:05]} 30. Bxf7 {[%clk 0:00:52]}  Nc4 {[%clk 0:01:04]} 31. h4 {[%clk 0:00:42]}  Ne5 {[%clk 0:01:02]} 32. Bg8+ {[%clk 0:00:33]}  Kh6 {[%clk 0:01:01]} 33. Bb3 {[%clk 0:00:30]}  Ra1+ {[%clk 0:01:01]} 34. Kh2 {[%clk 0:00:31]}  g5 {[%clk 0:00:53]} 35. Rh8+ {[%clk 0:00:26]}  Kg6 {[%clk 0:00:52]} 36. Bc2+ {[%clk 0:00:26]}  Kf6 {[%clk 0:00:52]} 37. Rf8+ {[%clk 0:00:23]}  Ke7 {[%clk 0:00:52]} 38. Rf5 {[%clk 0:00:23]}  Nf7 {[%clk 0:00:37]} 39. hxg5 {[%clk 0:00:22]}  Rc1 {[%clk 0:00:35]} 40. Bb3 {[%clk 0:00:20]}  Nd6 {[%clk 0:00:35]} 41. Re5+ {[%clk 0:00:20]}  Kd7 {[%clk 0:00:34]} 42. Re3 {[%clk 0:00:18]}  Kd8 {[%clk 0:00:26]} 43. f4 {[%clk 0:00:16]}  Nb5 {[%clk 0:00:26]} 44. f5 {[%clk 0:00:13]}  Rxc3 {[%clk 0:00:12]} 45. Rxc3 {[%clk 0:00:12]}  Nxc3 {[%clk 0:00:13]} 46. Kg3 {[%clk 0:00:10]}  Ke7 {[%clk 0:00:12]} 47. Kf4 {[%clk 0:00:10]}  a5 {[%clk 0:00:12]} 48. Ke5 {[%clk 0:00:10]}  a4 {[%clk 0:00:13]} 49. f6+ {[%clk 0:00:09]}  gxf6+ {[%clk 0:00:13]} 50. gxf6+ {[%clk 0:00:10]}  Kf8 {[%clk 0:00:14]} 51. Bxa4 {[%clk 0:00:09]}  Nxa4 {[%clk 0:00:14]} 52. g4 {[%clk 0:00:10]}  Nc5 {[%clk 0:00:14]} 53. g5 {[%clk 0:00:10]}  Nd7+ {[%clk 0:00:13]} 54. Kf5 {[%clk 0:00:10]}  Nc5 {[%clk 0:00:13]} 55. g6 {[%clk 0:00:10]}  Nd7 {[%clk 0:00:14]} 56. Ke6 {[%clk 0:00:09]}  Nc5+ {[%clk 0:00:13]} 57. Kf5 {[%clk 0:00:07]}  Nd7 {[%clk 0:00:12]} 58. Kg5 {[%clk 0:00:07]}  Kg8 {[%clk 0:00:12]} 59. Kf5 {[%clk 0:00:06]}  Nxf6 {[%clk 0:00:11]} 60. Kxf6 {[%clk 0:00:06]}  Kf8 {[%clk 0:00:12]} 61. g7+ {[%clk 0:00:07]}  Kg8 {[%clk 0:00:12]} 62. Kg6 {[%clk 0:00:07]} 1/2-1/2


[Site "https://www.chess.com"]

[Event "Titled Tuesday Blitz November 14 Late 2023"]
[White "Goncalves, Davi Sulzbacher"]
[Black "Vlassov, Nikolai"]
[WhiteFideId "2154510"]
[BlackFideId "4103360"]
[WhiteElo "2424"]
[BlackElo "2629"]
[Result "1-0"]
[Round "4"]
[TimeControl "180+1"]
[Date "2023.11.14"]
[WhiteClock "0:00:02"]
[BlackClock "0:00:00"]
[Board "64"]

1. e4 {[%clk 0:03:00]}  Nc6 {[%clk 0:02:59]} 2. Nc3 {[%clk 0:03:00]}  Nf6 {[%clk 0:02:58]} 3. f4 {[%clk 0:02:59]}  d5 {[%clk 0:02:58]} 4. e5 {[%clk 0:02:59]}  d4 {[%clk 0:02:49]} 5. exf6 {[%clk 0:02:37]}  dxc3 {[%clk 0:02:49]} 6. fxg7 {[%clk 0:02:36]}  cxd2+ {[%clk 0:02:49]} 7. Bxd2 {[%clk 0:02:15]}  Bxg7 {[%clk 0:02:49]} 8. c3 {[%clk 0:02:13]}  Bf5 {[%clk 0:02:45]} 9. Qb3 {[%clk 0:02:08]}  Qd6 {[%clk 0:02:38]} 10. O-O-O {[%clk 0:01:46]}  O-O {[%clk 0:02:29]} 11. Nf3 {[%clk 0:01:40]}  a6 {[%clk 0:02:09]} 12. Be3 {[%clk 0:01:13]}  Qh6 {[%clk 0:02:05]} 13. Ng5 {[%clk 0:00:56]}  e5 {[%clk 0:01:09]} 14. Bc4 {[%clk 0:00:48]}  Na5 {[%clk 0:01:09]} 15. Bxf7+ {[%clk 0:00:48]}  Kh8 {[%clk 0:01:09]} 16. Qd5 {[%clk 0:00:47]}  Nc6 {[%clk 0:00:48]} 17. Be6 {[%clk 0:00:26]}  Rad8 {[%clk 0:00:45]} 18. Qc4 {[%clk 0:00:16]}  Rxd1+ {[%clk 0:00:25]} 19. Rxd1 {[%clk 0:00:16]}  Qxh2 {[%clk 0:00:19]} 20. Bxf5 {[%clk 0:00:10]}  Rxf5 {[%clk 0:00:17]} 21. Qe6 {[%clk 0:00:09]}  Rf8 {[%clk 0:00:06]} 22. Nf7+ {[%clk 0:00:09]}  Rxf7 {[%clk 0:00:06]} 23. Qxf7 {[%clk 0:00:10]}  h6 {[%clk 0:00:05]} 24. f5 {[%clk 0:00:07]}  Qg3 {[%clk 0:00:00]} 25. Bd2 {[%clk 0:00:02]} 1-0


[Site "https://www.chess.com"]

[Event "Titled Tuesday Blitz November 14 Late 2023"]
[White "Wadsworth, Matthew J"]
[Black "Bogaudinov, Rushan"]
[WhiteFideId "415804"]
[BlackFideId "4129288"]
[WhiteElo "2624"]
[BlackElo "2404"]
[Result "1-0"]
[Round "4"]
[TimeControl "180+1"]
[Date "2023.11.14"]
[WhiteClock "0:01:22"]
[BlackClock "0:00:08"]
[Board "67"]

1. c4 {[%clk 0:03:00]}  e5 {[%clk 0:02:13]} 2. Nf3 {[%clk 0:02:59]}  Nc6 {[%clk 0:02:13]} 3. Nc3 {[%clk 0:02:58]}  Nf6 {[%clk 0:02:13]} 4. e4 {[%clk 0:02:59]}  d6 {[%clk 0:02:07]} 5. d3 {[%clk 0:02:57]}  g6 {[%clk 0:02:03]} 6. g3 {[%clk 0:02:56]}  Bg7 {[%clk 0:02:03]} 7. Bg2 {[%clk 0:02:55]}  O-O {[%clk 0:02:03]} 8. O-O {[%clk 0:02:51]}  a5 {[%clk 0:02:02]} 9. Rb1 {[%clk 0:02:50]}  Bg4 {[%clk 0:01:49]} 10. h3 {[%clk 0:02:44]}  Be6 {[%clk 0:01:49]} 11. Nd5 {[%clk 0:02:42]}  Ne8 {[%clk 0:01:40]} 12. b3 {[%clk 0:02:39]}  h6 {[%clk 0:01:24]} 13. a3 {[%clk 0:02:36]}  Kh7 {[%clk 0:01:23]} 14. b4 {[%clk 0:02:36]}  axb4 {[%clk 0:01:23]} 15. axb4 {[%clk 0:02:37]}  Ne7 {[%clk 0:01:18]} 16. Be3 {[%clk 0:02:29]}  f5 {[%clk 0:01:12]} 17. Nxe7 {[%clk 0:02:27]}  Qxe7 {[%clk 0:01:11]} 18. exf5 {[%clk 0:02:25]}  gxf5 {[%clk 0:01:07]} 19. Qd2 {[%clk 0:02:17]}  Nf6 {[%clk 0:00:57]} 20. c5 {[%clk 0:02:13]}  Nd5 {[%clk 0:00:46]} 21. cxd6 {[%clk 0:01:52]}  cxd6 {[%clk 0:00:47]} 22. Nh4 {[%clk 0:01:47]}  Bf6 {[%clk 0:00:20]} 23. Nxf5 {[%clk 0:01:34]}  Bxf5 {[%clk 0:00:19]} 24. Bxd5 {[%clk 0:01:35]}  Bxh3 {[%clk 0:00:19]} 25. Rfc1 {[%clk 0:01:33]}  Rab8 {[%clk 0:00:16]} 26. b5 {[%clk 0:01:31]}  Bg5 {[%clk 0:00:15]} 27. b6 {[%clk 0:01:30]}  Bxe3 {[%clk 0:00:14]} 28. Qxe3 {[%clk 0:01:30]}  Rbc8 {[%clk 0:00:14]} 29. Rxc8 {[%clk 0:01:23]}  Bxc8 {[%clk 0:00:11]} 30. Rc1 {[%clk 0:01:24]}  Kg6 {[%clk 0:00:09]} 31. Rc7 {[%clk 0:01:23]}  Qg5 {[%clk 0:00:09]} 32. Be4+ {[%clk 0:01:21]}  Kf6 {[%clk 0:00:07]} 33. Qf3+ {[%clk 0:01:22]}  Ke6 {[%clk 0:00:08]} 34. Bd5# {[%clk 0:01:22]} 1-0


[Site "https://www.chess.com"]

[Event "Titled Tuesday Blitz November 14 Late 2023"]
[White "Doluhanova, Evgeniya"]
[Black "Roberson, Peter T"]
[WhiteFideId "14112035"]
[BlackFideId "412384"]
[WhiteElo "2362"]
[BlackElo "2611"]
[Result "0-1"]
[Round "4"]
[TimeControl "180+1"]
[Date "2023.11.14"]
[WhiteClock "0:00:00"]
[BlackClock "0:00:05"]
[Board "69"]

1. d4 {[%clk 0:03:00]}  Nf6 {[%clk 0:02:59]} 2. c4 {[%clk 0:02:59]}  c5 {[%clk 0:02:59]} 3. e3 {[%clk 0:02:56]}  g6 {[%clk 0:02:58]} 4. Nf3 {[%clk 0:02:55]}  Bg7 {[%clk 0:02:59]} 5. Nc3 {[%clk 0:02:55]}  O-O {[%clk 0:03:00]} 6. Be2 {[%clk 0:02:55]}  cxd4 {[%clk 0:03:00]} 7. Nxd4 {[%clk 0:02:53]}  d5 {[%clk 0:03:01]} 8. cxd5 {[%clk 0:02:52]}  Nxd5 {[%clk 0:03:02]} 9. O-O {[%clk 0:02:48]}  Nxc3 {[%clk 0:03:01]} 10. bxc3 {[%clk 0:02:48]}  Nd7 {[%clk 0:03:02]} 11. Ba3 {[%clk 0:02:47]}  Qc7 {[%clk 0:02:48]} 12. Bxe7 {[%clk 0:02:43]}  Re8 {[%clk 0:02:48]} 13. Nb5 {[%clk 0:02:38]}  Qc6 {[%clk 0:02:42]} 14. Qd6 {[%clk 0:02:30]}  a6 {[%clk 0:01:05]} 15. Nc7 {[%clk 0:01:57]}  Rxe7 {[%clk 0:01:04]} 16. Qxc6 {[%clk 0:01:57]}  bxc6 {[%clk 0:01:05]} 17. Nxa8 {[%clk 0:01:57]}  Bb7 {[%clk 0:01:06]} 18. Rab1 {[%clk 0:01:10]}  Bxa8 {[%clk 0:01:05]} 19. Bxa6 {[%clk 0:01:09]}  Bxc3 {[%clk 0:00:59]} 20. Rfd1 {[%clk 0:01:04]}  Kg7 {[%clk 0:00:56]} 21. Bc4 {[%clk 0:00:45]}  c5 {[%clk 0:00:50]} 22. a4 {[%clk 0:00:41]}  Bb4 {[%clk 0:00:45]} 23. f3 {[%clk 0:00:28]}  Nb6 {[%clk 0:00:43]} 24. Rd8 {[%clk 0:00:19]}  Rxe3 {[%clk 0:00:22]} 25. a5 {[%clk 0:00:14]}  Nxc4 {[%clk 0:00:21]} 26. Rxa8 {[%clk 0:00:14]}  Nxa5 {[%clk 0:00:12]} 27. Rxb4 {[%clk 0:00:12]}  cxb4 {[%clk 0:00:13]} 28. Rxa5 {[%clk 0:00:13]}  Rb3 {[%clk 0:00:07]} 29. Rb5 {[%clk 0:00:12]}  Kf6 {[%clk 0:00:06]} 30. Kf2 {[%clk 0:00:13]}  Rb2+ {[%clk 0:00:06]} 31. Kg3 {[%clk 0:00:13]}  b3 {[%clk 0:00:07]} 32. h4 {[%clk 0:00:12]}  Rb1 {[%clk 0:00:07]} 33. Kh2 {[%clk 0:00:12]}  h5 {[%clk 0:00:06]} 34. g4 {[%clk 0:00:11]}  hxg4 {[%clk 0:00:04]} 35. fxg4 {[%clk 0:00:12]}  Kg7 {[%clk 0:00:04]} 36. Kg2 {[%clk 0:00:12]}  b2 {[%clk 0:00:03]} 37. Kh2 {[%clk 0:00:12]}  f5 {[%clk 0:00:04]} 38. gxf5 {[%clk 0:00:11]}  gxf5 {[%clk 0:00:05]} 39. h5 {[%clk 0:00:07]}  f4 {[%clk 0:00:05]} 40. Kg2 {[%clk 0:00:00]}  f3+ {[%clk 0:00:05]} 0-1


[Site "https://www.chess.com"]

[Event "Titled Tuesday Blitz November 14 Late 2023"]
[White "Atanasov, Anthony"]
[Black "Szente Varga, Fruzsina"]
[WhiteFideId "2623897"]
[BlackFideId "712264"]
[WhiteElo "2597"]
[BlackElo "2343"]
[Result "1-0"]
[Round "4"]
[TimeControl "180+1"]
[Date "2023.11.14"]
[WhiteClock "0:01:21"]
[BlackClock "0:00:14"]
[Board "72"]

1. d4 {[%clk 0:03:00]}  Nf6 {[%clk 0:02:59]} 2. Nf3 {[%clk 0:02:53]}  g6 {[%clk 0:02:59]} 3. c4 {[%clk 0:02:51]}  Bg7 {[%clk 0:02:59]} 4. Nc3 {[%clk 0:02:52]}  O-O {[%clk 0:02:59]} 5. e4 {[%clk 0:02:53]}  d6 {[%clk 0:03:00]} 6. Be3 {[%clk 0:02:53]}  Ng4 {[%clk 0:02:59]} 7. Bg5 {[%clk 0:02:52]}  h6 {[%clk 0:02:59]} 8. Bh4 {[%clk 0:02:53]}  g5 {[%clk 0:02:38]} 9. Bg3 {[%clk 0:02:48]}  c5 {[%clk 0:02:23]} 10. d5 {[%clk 0:02:39]}  Nd7 {[%clk 0:02:21]} 11. Be2 {[%clk 0:02:34]}  Nge5 {[%clk 0:02:17]} 12. Nd2 {[%clk 0:02:31]}  Ng6 {[%clk 0:01:45]} 13. O-O {[%clk 0:02:20]}  Nde5 {[%clk 0:01:43]} 14. Qc2 {[%clk 0:02:14]}  f5 {[%clk 0:01:42]} 15. f3 {[%clk 0:02:11]}  f4 {[%clk 0:01:38]} 16. Bf2 {[%clk 0:02:11]}  g4 {[%clk 0:01:38]} 17. fxg4 {[%clk 0:02:07]}  Bxg4 {[%clk 0:01:30]} 18. Bxg4 {[%clk 0:02:08]}  Nxg4 {[%clk 0:01:30]} 19. Nf3 {[%clk 0:02:08]}  N6e5 {[%clk 0:01:26]} 20. Kh1 {[%clk 0:02:00]}  Nxf2+ {[%clk 0:01:17]} 21. Qxf2 {[%clk 0:01:58]}  Ng4 {[%clk 0:01:14]} 22. Qh4 {[%clk 0:01:58]}  Ne3 {[%clk 0:01:14]} 23. Rf2 {[%clk 0:01:55]}  Nxc4 {[%clk 0:01:11]} 24. Raf1 {[%clk 0:01:51]}  Ne3 {[%clk 0:00:53]} 25. Rg1 {[%clk 0:01:48]}  e5 {[%clk 0:00:28]} 26. dxe6 {[%clk 0:01:45]}  Qxh4 {[%clk 0:00:27]} 27. Nxh4 {[%clk 0:01:45]}  Bd4 {[%clk 0:00:23]} 28. Rf3 {[%clk 0:01:37]}  Kh7 {[%clk 0:00:21]} 29. Ne2 {[%clk 0:01:27]}  Bxb2 {[%clk 0:00:18]} 30. Nxf4 {[%clk 0:01:26]}  Bd4 {[%clk 0:00:18]} 31. Rb1 {[%clk 0:01:23]}  Ng4 {[%clk 0:00:17]} 32. Rxb7+ {[%clk 0:01:21]}  Kg8 {[%clk 0:00:18]} 33. Nf5 {[%clk 0:01:20]}  Nf2+ {[%clk 0:00:15]} 34. Rxf2 {[%clk 0:01:20]}  Bxf2 {[%clk 0:00:15]} 35. Nxh6+ {[%clk 0:01:20]}  Kh8 {[%clk 0:00:14]} 36. Ng6# {[%clk 0:01:21]} 1-0


[Site "https://www.chess.com"]